[Event "Live Chess"]
[Site "Chess.com"]
[Date "2023.05.21"]
[Round "-"]
[White "CheckThis4"]
[Black "jumush"]
[Result "1-0"]
[WhiteElo "2524"]
[BlackElo "1723"]
[TimeControl "300"]
[EndTime "6:36:44 PDT"]
[Termination "CheckThis4 won by resignation"]

1. d4 {[%clk 0:04:58.4]} 1... d5 {[%clk 0:04:55]} 2. Nc3 {[%clk 0:04:58.3]} 2...
Nc6 {[%clk 0:04:52.7]} 3. e4 {[%clk 0:04:56.9]} 3... e5 {[%clk 0:04:51.3]} 4.
Bb5 {[%clk 0:04:49.2]} 4... Bd7 {[%clk 0:04:39.4]} 5. exd5 {[%clk 0:04:33.3]}
5... Nxd4 {[%clk 0:04:36.7]} 6. Bxd7+ {[%clk 0:04:31]} 6... Qxd7 {[%clk
0:04:34.7]} 7. Nge2 {[%clk 0:04:30]} 7... Bb4 {[%clk 0:04:32.3]} 8. Nxd4 {[%clk
0:04:27.3]} 8... exd4 {[%clk 0:04:30.3]} 9. Qxd4 {[%clk 0:04:26.1]} 9... Bxc3+
{[%clk 0:04:28.8]} 10. bxc3 {[%clk 0:04:18.4]} 10... Nf6 {[%clk 0:04:27.1]} 11.
c4 {[%clk 0:04:16.1]} 11... O-O-O {[%clk 0:04:23.5]} 12. Qxa7 {[%clk 0:04:11.8]}
12... Rhe8+ {[%clk 0:04:21.4]} 13. Be3 {[%clk 0:04:09.6]} 13... Qf5 {[%clk
0:04:14.5]} 14. O-O {[%clk 0:04:03.3]} 14... Qxc2 {[%clk 0:04:11]} 15. Qa8+
{[%clk 0:04:01.3]} 15... Kd7 {[%clk 0:04:09.2]} 16. Qxb7 {[%clk 0:04:00.2]}
16... Ke7 {[%clk 0:04:07.8]} 17. Bc5+ {[%clk 0:03:56]} 1-0

[Event "Live Chess"]
[Site "Chess.com"]
[Date "2023.05.21"]
[Round "-"]
[White "whatnot126"]
[Black "nigelst"]
[Result "1-0"]
[WhiteElo "2066"]
[BlackElo "1704"]
[TimeControl "300"]
[EndTime "6:36:49 PDT"]
[Termination "whatnot126 won by checkmate"]

1. e4 {[%clk 0:04:58.9]} 1... c6 {[%clk 0:04:58.9]} 2. d4 {[%clk 0:04:55.1]}
2... d5 {[%clk 0:04:57.9]} 3. Nc3 {[%clk 0:04:52.2]} 3... dxe4 {[%clk
0:04:56.5]} 4. Nxe4 {[%clk 0:04:52.1]} 4... Nf6 {[%clk 0:04:55.9]} 5. Ng3 {[%clk
0:04:49.4]} 5... h5 {[%clk 0:04:50.4]} 6. Nf3 {[%clk 0:04:47.4]} 6... h4 {[%clk
0:04:48.5]} 7. Ne2 {[%clk 0:04:47]} 7... Bg4 {[%clk 0:04:36.4]} 8. Be3 {[%clk
0:04:39.3]} 8... Nd5 {[%clk 0:04:32.5]} 9. Qd2 {[%clk 0:04:31.1]} 9... e6 {[%clk
0:04:27.6]} 10. Ne5 {[%clk 0:04:24.8]} 10... Bxe2 {[%clk 0:04:22.7]} 11. Bxe2
{[%clk 0:04:24.7]} 11... Bd6 {[%clk 0:04:20.7]} 12. O-O-O {[%clk 0:04:14.4]}
12... Qc7 {[%clk 0:04:19.6]} 13. c4 {[%clk 0:04:07]} 13... Nxe3 {[%clk
0:04:18.1]} 14. Qxe3 {[%clk 0:04:04.9]} 14... Bxe5 {[%clk 0:04:15.8]} 15. dxe5
{[%clk 0:04:04.8]} 15... Nd7 {[%clk 0:04:10.3]} 16. f4 {[%clk 0:03:44.9]} 16...
O-O {[%clk 0:04:01.3]} 17. Qh3 {[%clk 0:03:40.5]} 17... Nc5 {[%clk 0:03:52.2]}
18. Qxh4 {[%clk 0:03:30.8]} 18... Rad8 {[%clk 0:03:43]} 19. Qf2 {[%clk
0:03:08.6]} 19... b6 {[%clk 0:03:31.3]} 20. h4 {[%clk 0:03:06.1]} 20... Rxd1+
{[%clk 0:03:26.8]} 21. Bxd1 {[%clk 0:03:04.9]} 21... Rd8 {[%clk 0:03:25.5]} 22.
Bc2 {[%clk 0:03:01.9]} 22... Rd7 {[%clk 0:03:15.4]} 23. h5 {[%clk 0:03:00.6]}
23... Qd8 {[%clk 0:03:13.6]} 24. h6 {[%clk 0:02:55.1]} 24... g6 {[%clk
0:03:11.9]} 25. g4 {[%clk 0:02:37.7]} 25... Nd3+ {[%clk 0:03:10.6]} 26. Bxd3
{[%clk 0:02:35]} 26... Rxd3 {[%clk 0:03:09.2]} 27. f5 {[%clk 0:02:32.5]} 27...
exf5 {[%clk 0:03:03.4]} 28. gxf5 {[%clk 0:02:32.4]} 28... Qg5+ {[%clk 0:02:59]}
29. Kc2 {[%clk 0:02:28.7]} 29... Rd8 {[%clk 0:02:54.9]} 30. fxg6 {[%clk
0:01:57.5]} 30... Qxg6+ {[%clk 0:02:37.5]} 31. Kc1 {[%clk 0:01:56.4]} 31... Qg5+
{[%clk 0:02:34.3]} 32. Kb1 {[%clk 0:01:53.9]} 32... Qg6+ {[%clk 0:02:12.7]} 33.
Ka1 {[%clk 0:01:51.8]} 33... Kh7 {[%clk 0:02:10]} 34. Rg1 {[%clk 0:01:47.7]}
34... Qd3 {[%clk 0:02:06.6]} 35. Qxf7+ {[%clk 0:01:44.9]} 35... Kxh6 {[%clk
0:02:01.9]} 36. Qg7+ {[%clk 0:01:44.2]} 36... Kh5 {[%clk 0:02:00.7]} 37. Qg5#
{[%clk 0:01:44.1]} 1-0

[Event "Live Chess"]
[Site "Chess.com"]
[Date "2023.05.21"]
[Round "-"]
[White "peter-785"]
[Black "onemoretime1975"]
[Result "0-1"]
[WhiteElo "1171"]
[BlackElo "1860"]
[TimeControl "300"]
[EndTime "6:36:53 PDT"]
[Termination "onemoretime1975 won by resignation"]

1. e4 {[%clk 0:04:57.4]} 1... e6 {[%clk 0:04:58.9]} 2. Nf3 {[%clk 0:04:57]} 2...
d5 {[%clk 0:04:57.6]} 3. exd5 {[%clk 0:04:55.1]} 3... exd5 {[%clk 0:04:56.7]} 4.
d4 {[%clk 0:04:54.7]} 4... Nf6 {[%clk 0:04:54.3]} 5. Nc3 {[%clk 0:04:46.5]} 5...
c6 {[%clk 0:04:51.7]} 6. Be2 {[%clk 0:04:45.4]} 6... Bd6 {[%clk 0:04:50.5]} 7.
O-O {[%clk 0:04:41]} 7... O-O {[%clk 0:04:48.4]} 8. Be3 {[%clk 0:04:22.8]} 8...
h6 {[%clk 0:04:46.2]} 9. Re1 {[%clk 0:04:17]} 9... Bf5 {[%clk 0:04:44.5]} 10.
Bd3 {[%clk 0:04:01.3]} 10... Bxd3 {[%clk 0:04:40.7]} 11. Qxd3 {[%clk 0:03:59.1]}
11... Nbd7 {[%clk 0:04:38]} 12. Qd2 {[%clk 0:03:52.3]} 12... Ne4 {[%clk
0:04:34.3]} 13. Nxe4 {[%clk 0:03:49.5]} 13... dxe4 {[%clk 0:04:33.3]} 14. Ne5
{[%clk 0:03:21]} 14... Nxe5 {[%clk 0:04:28.2]} 15. dxe5 {[%clk 0:03:20.4]} 15...
Bxe5 {[%clk 0:04:27]} 16. c3 {[%clk 0:03:14.8]} 16... f5 {[%clk 0:04:04.8]} 17.
Bf4 {[%clk 0:03:03.4]} 17... Qxd2 {[%clk 0:03:56.5]} 18. Bxd2 {[%clk 0:03:01.7]}
18... Rad8 {[%clk 0:03:50.7]} 19. Rad1 {[%clk 0:02:57.4]} 19... Rd3 {[%clk
0:03:43.9]} 20. Re3 {[%clk 0:02:41.2]} 20... Rfd8 {[%clk 0:03:37.7]} 21. Rxd3
{[%clk 0:02:36.1]} 21... Rxd3 {[%clk 0:03:35.2]} 22. Kf1 {[%clk 0:02:33.2]}
22... Bf4 {[%clk 0:03:31]} 23. Ke2 {[%clk 0:02:32.6]} 23... Rxd2+ {[%clk
0:03:26.9]} 24. Rxd2 {[%clk 0:02:31.4]} 24... Bxd2 {[%clk 0:03:26]} 25. Kxd2
{[%clk 0:02:30.8]} 25... g5 {[%clk 0:03:23.9]} 26. g3 {[%clk 0:02:22.6]} 26...
Kf7 {[%clk 0:03:20.4]} 27. Ke3 {[%clk 0:02:21.7]} 27... Ke6 {[%clk 0:03:18.9]}
28. Kd4 {[%clk 0:02:21]} 28... Kd6 {[%clk 0:03:17.6]} 29. b4 {[%clk 0:02:18.6]}
29... b6 {[%clk 0:03:10.9]} 30. a4 {[%clk 0:02:16.5]} 30... a5 {[%clk
0:03:07.9]} 31. Kc4 {[%clk 0:01:55.9]} 31... Ke5 {[%clk 0:02:53]} 32. bxa5
{[%clk 0:01:52]} 32... bxa5 {[%clk 0:02:50.7]} 33. Kc5 {[%clk 0:01:50.8]} 33...
f4 {[%clk 0:02:48.8]} 34. Kxc6 {[%clk 0:01:43.6]} 34... e3 {[%clk 0:02:45.4]}
35. fxe3 {[%clk 0:01:40.2]} 35... fxe3 {[%clk 0:02:44]} 0-1

[Event "Live Chess"]
[Site "Chess.com"]
[Date "2023.05.21"]
[Round "-"]
[White "bedsdrout"]
[Black "Hussamalhaidar"]
[Result "1-0"]
[WhiteElo "1253"]
[BlackElo "1136"]
[TimeControl "300"]
[EndTime "6:36:55 PDT"]
[Termination "bedsdrout won by checkmate"]

1. e4 {[%clk 0:04:57.2]} 1... c6 {[%clk 0:04:56.7]} 2. d4 {[%clk 0:04:55.6]}
2... d5 {[%clk 0:04:55.7]} 3. e5 {[%clk 0:04:53.5]} 3... e6 {[%clk 0:04:52.7]}
4. Nf3 {[%clk 0:04:51.7]} 4... c5 {[%clk 0:04:51.7]} 5. c3 {[%clk 0:04:50.1]}
5... Nc6 {[%clk 0:04:49.8]} 6. Bd3 {[%clk 0:04:47.5]} 6... Qa5 {[%clk
0:04:46.9]} 7. Nbd2 {[%clk 0:04:44.9]} 7... cxd4 {[%clk 0:04:42]} 8. Nb3 {[%clk
0:04:17.3]} 8... Qb6 {[%clk 0:04:33.5]} 9. Nbxd4 {[%clk 0:04:13]} 9... Nxd4
{[%clk 0:04:25.5]} 10. Nxd4 {[%clk 0:04:09.8]} 10... Bc5 {[%clk 0:04:22.7]} 11.
Bb5+ {[%clk 0:04:06.8]} 11... Bd7 {[%clk 0:04:15.3]} 12. Bxd7+ {[%clk
0:04:03.2]} 12... Kxd7 {[%clk 0:04:14.1]} 13. Be3 {[%clk 0:04:00.7]} 13... Qxb2
{[%clk 0:04:08.1]} 14. O-O {[%clk 0:03:58.3]} 14... Rc8 {[%clk 0:03:51.1]} 15.
Rb1 {[%clk 0:03:52.8]} 15... Qxc3 {[%clk 0:03:42.7]} 16. Rxb7+ {[%clk
0:03:49.5]} 16... Rc7 {[%clk 0:03:39.7]} 17. Qa4+ {[%clk 0:03:46.1]} 17... Kc8
{[%clk 0:03:30.7]} 18. Rxc7+ {[%clk 0:03:43.9]} 18... Kxc7 {[%clk 0:03:29.2]}
19. Qc6+ {[%clk 0:03:41.4]} 19... Kb8 {[%clk 0:03:20.9]} 20. Qe8+ {[%clk
0:03:39.3]} 20... Kc7 {[%clk 0:03:15.9]} 21. Nb5+ {[%clk 0:03:36.9]} 21... Kb6
{[%clk 0:03:10.5]} 22. Nxc3 {[%clk 0:03:33.9]} 22... Ne7 {[%clk 0:03:07.8]} 23.
Rb1+ {[%clk 0:03:31.3]} 23... Kc7 {[%clk 0:03:03.7]} 24. Nb5+ {[%clk 0:03:27.9]}
24... Kb6 {[%clk 0:02:57.3]} 25. Nd6+ {[%clk 0:03:25.1]} 25... Kc7 {[%clk
0:02:53]} 26. Rb7# {[%clk 0:03:20.5]} 1-0

[Event "Live Chess"]
[Site "Chess.com"]
[Date "2023.05.21"]
[Round "-"]
[White "Berdgross"]
[Black "BillythekidFellowes"]
[Result "0-1"]
[WhiteElo "697"]
[BlackElo "2086"]
[TimeControl "300"]
[EndTime "6:36:59 PDT"]
[Termination "BillythekidFellowes won by resignation"]

1. e4 {[%clk 0:04:55.3]} 1... e6 {[%clk 0:04:59.3]} 2. d3 {[%clk 0:04:54.8]}
2... d5 {[%clk 0:04:58.7]} 3. Nf3 {[%clk 0:04:54.6]} 3... dxe4 {[%clk
0:04:58.2]} 4. dxe4 {[%clk 0:04:53.2]} 4... Qxd1+ {[%clk 0:04:58.1]} 5. Kxd1
{[%clk 0:04:51.5]} 5... Nc6 {[%clk 0:04:58]} 6. Nc3 {[%clk 0:04:47.9]} 6... Nf6
{[%clk 0:04:57.4]} 7. Bb5 {[%clk 0:04:45.4]} 7... Bd7 {[%clk 0:04:56.7]} 8. Bxc6
{[%clk 0:04:39.1]} 8... Bxc6 {[%clk 0:04:56.6]} 9. Bd2 {[%clk 0:04:35.4]} 9...
O-O-O {[%clk 0:04:55.6]} 10. Ke2 {[%clk 0:04:30]} 10... Nxe4 {[%clk 0:04:53.5]}
11. Nxe4 {[%clk 0:04:27.9]} 11... Bxe4 {[%clk 0:04:53.4]} 12. c3 {[%clk
0:04:24.7]} 12... Bc5 {[%clk 0:04:51.8]} 13. Rad1 {[%clk 0:04:21.1]} 13... h6
{[%clk 0:04:48.9]} 14. Be3 {[%clk 0:04:17.7]} 14... Bxe3 {[%clk 0:04:46.6]} 15.
Kxe3 {[%clk 0:04:15.6]} 15... Bxf3 {[%clk 0:04:45.6]} 16. Kxf3 {[%clk
0:04:14.5]} 16... Rxd1 {[%clk 0:04:45.5]} 17. Rxd1 {[%clk 0:04:12.4]} 17... Rd8
{[%clk 0:04:45.4]} 18. Rxd8+ {[%clk 0:04:10.9]} 18... Kxd8 {[%clk 0:04:45.3]}
19. Ke4 {[%clk 0:04:09.9]} 19... Ke7 {[%clk 0:04:45.2]} 20. f4 {[%clk
0:04:08.4]} 20... f6 {[%clk 0:04:43.9]} 21. g4 {[%clk 0:04:07.7]} 21... Kd6
{[%clk 0:04:43]} 22. h4 {[%clk 0:04:06]} 22... g5 {[%clk 0:04:40.8]} 23. fxg5
{[%clk 0:04:03.5]} 23... fxg5 {[%clk 0:04:39.4]} 24. hxg5 {[%clk 0:04:02.6]}
24... hxg5 {[%clk 0:04:39.3]} 25. b4 {[%clk 0:03:57.9]} 25... b5 {[%clk
0:04:38.5]} 26. a3 {[%clk 0:03:55.4]} 26... a6 {[%clk 0:04:34.6]} 27. Kf3 {[%clk
0:03:48.9]} 27... Ke5 {[%clk 0:04:33.6]} 28. Ke3 {[%clk 0:03:47.5]} 28... Kd5
{[%clk 0:04:32.7]} 29. Kf3 {[%clk 0:03:46.4]} 29... Kc4 {[%clk 0:04:28.2]} 30.
Ke4 {[%clk 0:03:42.9]} 30... Kxc3 {[%clk 0:04:27.6]} 31. Ke5 {[%clk 0:03:41.7]}
31... Kd3 {[%clk 0:04:26.5]} 32. Kxe6 {[%clk 0:03:40.4]} 32... Ke4 {[%clk
0:04:25.4]} 33. Kf6 {[%clk 0:03:39.6]} 33... Kf4 {[%clk 0:04:24.8]} 34. Ke6
{[%clk 0:03:30.4]} 34... Kxg4 {[%clk 0:04:24.7]} 35. Kd7 {[%clk 0:03:29]} 35...
Kf4 {[%clk 0:04:24]} 36. Kxc7 {[%clk 0:03:28.1]} 36... g4 {[%clk 0:04:23.9]} 37.
Kb6 {[%clk 0:03:27.2]} 37... g3 {[%clk 0:04:23.8]} 38. Kxa6 {[%clk 0:03:26.5]}
38... g2 {[%clk 0:04:23.7]} 39. Kxb5 {[%clk 0:03:25.9]} 39... g1=Q {[%clk
0:04:23.6]} 40. a4 {[%clk 0:03:14]} 40... Ke5 {[%clk 0:04:23.5]} 41. a5 {[%clk
0:03:13.1]} 41... Kd6 {[%clk 0:04:23.4]} 42. a6 {[%clk 0:03:12.2]} 42... Kc7
{[%clk 0:04:23.3]} 43. Ka5 {[%clk 0:03:09.8]} 43... Qb6+ {[%clk 0:04:23.2]} 44.
Ka4 {[%clk 0:03:08.2]} 44... Qxa6+ {[%clk 0:04:23.1]} 45. Kb3 {[%clk 0:03:06]}
45... Kc6 {[%clk 0:04:23]} 46. Kc3 {[%clk 0:03:03.9]} 46... Kb5 {[%clk
0:04:22.7]} 47. Kb3 {[%clk 0:03:02.7]} 47... Qd6 {[%clk 0:04:22.6]} 48. Kc3
{[%clk 0:03:00.1]} 48... Qd5 {[%clk 0:04:21.9]} 49. Kb2 {[%clk 0:02:56.6]} 49...
Kxb4 {[%clk 0:04:21.8]} 50. Kc2 {[%clk 0:02:55.5]} 50... Qd4 {[%clk 0:04:20.2]}
0-1

[Event "Live Chess"]
[Site "Chess.com"]
[Date "2023.05.21"]
[Round "-"]
[White "Chesscoach_Golichenko"]
[Black "ossie57"]
[Result "1-0"]
[WhiteElo "2630"]
[BlackElo "1841"]
[TimeControl "300"]
[EndTime "6:37:02 PDT"]
[Termination "Chesscoach_Golichenko won on time"]

1. d4 {[%clk 0:04:58.4]} 1... d5 {[%clk 0:04:57.5]} 2. Nc3 {[%clk 0:04:53.6]}
2... c6 {[%clk 0:04:56.7]} 3. Bf4 {[%clk 0:04:51.3]} 3... g6 {[%clk 0:04:48.9]}
4. e4 {[%clk 0:04:49]} 4... dxe4 {[%clk 0:04:44.6]} 5. Nxe4 {[%clk 0:04:47.3]}
5... Bg7 {[%clk 0:04:42.5]} 6. c3 {[%clk 0:04:42.7]} 6... Nf6 {[%clk 0:04:34.6]}
7. Bd3 {[%clk 0:04:36.6]} 7... Nxe4 {[%clk 0:04:08.8]} 8. Bxe4 {[%clk
0:04:36.5]} 8... Nd7 {[%clk 0:03:57.2]} 9. h4 {[%clk 0:04:33.6]} 9... Nf6 {[%clk
0:03:55.4]} 10. Bf3 {[%clk 0:04:31]} 10... h5 {[%clk 0:03:53.6]} 11. Nh3 {[%clk
0:04:02.5]} 11... Qb6 {[%clk 0:03:36.8]} 12. Qd2 {[%clk 0:03:50.6]} 12... Bg4
{[%clk 0:03:29]} 13. Ng5 {[%clk 0:03:34.2]} 13... O-O {[%clk 0:03:07]} 14. Bxg4
{[%clk 0:03:21.9]} 14... Nxg4 {[%clk 0:03:04.6]} 15. f3 {[%clk 0:03:20.8]} 15...
e5 {[%clk 0:02:51.5]} 16. fxg4 {[%clk 0:03:11.7]} 16... exf4 {[%clk 0:02:50.3]}
17. O-O-O {[%clk 0:03:10.2]} 17... hxg4 {[%clk 0:02:37]} 18. Qxf4 {[%clk
0:02:44.4]} 18... Rae8 {[%clk 0:02:19.2]} 19. Qxg4 {[%clk 0:02:38.3]} 19... f5
{[%clk 0:02:13.3]} 20. Qf3 {[%clk 0:02:24.8]} 20... Bh6 {[%clk 0:02:09.2]} 21.
Rhe1 {[%clk 0:02:00.8]} 21... Qb5 {[%clk 0:01:56.9]} 22. Kb1 {[%clk 0:01:28.9]}
22... Bxg5 {[%clk 0:01:40.4]} 23. hxg5 {[%clk 0:01:24.3]} 23... Rxe1 {[%clk
0:01:23.2]} 24. Rxe1 {[%clk 0:01:22.9]} 24... Qd5 {[%clk 0:01:09.6]} 25. Qxd5+
{[%clk 0:01:20.2]} 25... cxd5 {[%clk 0:01:09.5]} 26. Re5 {[%clk 0:01:19.1]}
26... f4 {[%clk 0:00:41.8]} 27. Rxd5 {[%clk 0:01:15.2]} 27... f3 {[%clk
0:00:37.7]} 28. gxf3 {[%clk 0:01:15.1]} 28... Rxf3 {[%clk 0:00:36.9]} 29. Rd8+
{[%clk 0:01:10.7]} 29... Kf7 {[%clk 0:00:32.9]} 30. Rd7+ {[%clk 0:01:09.2]}
30... Ke6 {[%clk 0:00:32]} 31. Rxb7 {[%clk 0:01:09.1]} 31... Rf5 {[%clk
0:00:26.4]} 32. Rxa7 {[%clk 0:01:07.1]} 32... Rxg5 {[%clk 0:00:25.8]} 33. a4
{[%clk 0:01:06]} 33... Rg2 {[%clk 0:00:23.8]} 34. a5 {[%clk 0:00:58.1]} 34...
Kd6 {[%clk 0:00:21.2]} 35. c4 {[%clk 0:00:51.3]} 35... Kc6 {[%clk 0:00:14.9]}
36. b4 {[%clk 0:00:49.5]} 36... g5 {[%clk 0:00:13.5]} 37. b5+ {[%clk 0:00:47.5]}
37... Kd6 {[%clk 0:00:12.8]} 38. a6 {[%clk 0:00:45.4]} 38... g4 {[%clk
0:00:07.7]} 39. Rg7 {[%clk 0:00:43.8]} 39... Rg1+ {[%clk 0:00:06.1]} 40. Kb2
{[%clk 0:00:42]} 40... g3 {[%clk 0:00:05.7]} 41. a7 {[%clk 0:00:41.2]} 41... g2
{[%clk 0:00:03.5]} 42. a8=Q {[%clk 0:00:40.3]} 1-0

[Event "Live Chess"]
[Site "Chess.com"]
[Date "2023.05.21"]
[Round "-"]
[White "zdanevych"]
[Black "davigator"]
[Result "0-1"]
[WhiteElo "1504"]
[BlackElo "2305"]
[TimeControl "300"]
[EndTime "6:37:02 PDT"]
[Termination "davigator won by resignation"]

1. d4 {[%clk 0:04:59.1]} 1... Nf6 {[%clk 0:04:57.8]} 2. c4 {[%clk 0:04:58.5]}
2... e6 {[%clk 0:04:56.9]} 3. Nc3 {[%clk 0:04:58]} 3... Bb4 {[%clk 0:04:54.8]}
4. a3 {[%clk 0:04:57.4]} 4... Bxc3+ {[%clk 0:04:53.2]} 5. bxc3 {[%clk
0:04:57.3]} 5... d5 {[%clk 0:04:49.2]} 6. cxd5 {[%clk 0:04:55.8]} 6... exd5
{[%clk 0:04:45.9]} 7. Nf3 {[%clk 0:04:53.6]} 7... c5 {[%clk 0:04:44.2]} 8. Bg5
{[%clk 0:04:49.9]} 8... O-O {[%clk 0:04:43.1]} 9. e3 {[%clk 0:04:46.1]} 9...
Nbd7 {[%clk 0:04:41.5]} 10. Bd3 {[%clk 0:04:44.5]} 10... Qa5 {[%clk 0:04:39.9]}
11. Qc2 {[%clk 0:04:43]} 11... h6 {[%clk 0:04:38.4]} 12. Bh4 {[%clk 0:04:42]}
12... Re8 {[%clk 0:04:36]} 13. O-O {[%clk 0:04:40.5]} 13... Ne4 {[%clk
0:04:34.8]} 14. Rfc1 {[%clk 0:04:31.9]} 14... b6 {[%clk 0:04:33]} 15. Nd2 {[%clk
0:04:29.2]} 15... Ndf6 {[%clk 0:04:29.8]} 16. Bxf6 {[%clk 0:04:23.5]} 16... Nxf6
{[%clk 0:04:28.2]} 17. dxc5 {[%clk 0:04:15]} 17... bxc5 {[%clk 0:04:25.3]} 18.
Nf3 {[%clk 0:03:54.5]} 18... Qc7 {[%clk 0:04:22]} 19. h3 {[%clk 0:03:51.1]}
19... Be6 {[%clk 0:04:07.1]} 20. a4 {[%clk 0:03:48.8]} 20... Red8 {[%clk
0:04:02.5]} 21. Bb5 {[%clk 0:03:46.8]} 21... a6 {[%clk 0:03:48.8]} 22. Bd3
{[%clk 0:03:41.9]} 22... Qa5 {[%clk 0:03:43.4]} 23. c4 {[%clk 0:03:34.4]} 23...
d4 {[%clk 0:03:40.1]} 24. exd4 {[%clk 0:03:28.7]} 24... cxd4 {[%clk 0:03:39.2]}
25. Qb2 {[%clk 0:03:10.6]} 25... Qc5 {[%clk 0:03:36.7]} 26. Rab1 {[%clk
0:03:03]} 26... Rd6 {[%clk 0:03:24.2]} 27. Qb7 {[%clk 0:02:58.8]} 27... Rc8
{[%clk 0:03:21.3]} 28. Qb2 {[%clk 0:02:41.9]} 28... g5 {[%clk 0:03:15.4]} 29.
Nd2 {[%clk 0:02:36.8]} 29... g4 {[%clk 0:03:09]} 30. hxg4 {[%clk 0:02:33.4]}
30... Nxg4 {[%clk 0:03:07.1]} 31. Ne4 {[%clk 0:02:30.2]} 31... Qh5 {[%clk
0:03:03.7]} 32. Nxd6 {[%clk 0:02:23.4]} 32... Qh2+ {[%clk 0:03:02.6]} 33. Kf1
{[%clk 0:02:22.8]} 33... Qxd6 {[%clk 0:03:01.4]} 34. Qb7 {[%clk 0:01:52.3]}
34... Qf4 {[%clk 0:02:58.8]} 35. Qf3 {[%clk 0:01:45.9]} 35... Nh2+ {[%clk
0:02:57.3]} 0-1

[Event "Live Chess"]
[Site "Chess.com"]
[Date "2023.05.21"]
[Round "-"]
[White "Delacorta"]
[Black "LiamClery2020"]
[Result "0-1"]
[WhiteElo "1383"]
[BlackElo "1966"]
[TimeControl "300"]
[EndTime "6:37:06 PDT"]
[Termination "LiamClery2020 won by resignation"]

1. d4 {[%clk 0:04:58.1]} 1... Nf6 {[%clk 0:04:57.9]} 2. Nf3 {[%clk 0:04:57.6]}
2... e6 {[%clk 0:04:53.1]} 3. e3 {[%clk 0:04:56.8]} 3... c5 {[%clk 0:04:52]} 4.
Bd3 {[%clk 0:04:55.8]} 4... cxd4 {[%clk 0:04:51]} 5. exd4 {[%clk 0:04:55.7]}
5... d5 {[%clk 0:04:50.7]} 6. b3 {[%clk 0:04:55]} 6... Nc6 {[%clk 0:04:49.8]} 7.
Bb2 {[%clk 0:04:54.4]} 7... Bd6 {[%clk 0:04:49.7]} 8. Ne5 {[%clk 0:04:51.1]}
8... O-O {[%clk 0:04:49.6]} 9. Nd2 {[%clk 0:04:49.3]} 9... Bxe5 {[%clk
0:04:48.8]} 10. dxe5 {[%clk 0:04:48.2]} 10... Nd7 {[%clk 0:04:48.7]} 11. f4
{[%clk 0:04:47.1]} 11... f6 {[%clk 0:04:47.3]} 12. O-O {[%clk 0:04:39.7]} 12...
fxe5 {[%clk 0:04:46]} 13. Qh5 {[%clk 0:04:33.1]} 13... e4 {[%clk 0:04:43.5]} 14.
Nxe4 {[%clk 0:04:32.1]} 14... dxe4 {[%clk 0:04:42.2]} 15. Bxe4 {[%clk
0:04:31.4]} 15... h6 {[%clk 0:04:31.9]} 16. Qg6 {[%clk 0:04:25]} 16... Nf6
{[%clk 0:04:26.8]} 17. Bxf6 {[%clk 0:03:59.7]} 17... Qxf6 {[%clk 0:04:24.2]} 18.
Qh7+ {[%clk 0:03:40.8]} 18... Kf7 {[%clk 0:04:21.5]} 19. Rad1 {[%clk 0:03:37.8]}
19... Rd8 {[%clk 0:04:13.7]} 20. Rxd8 {[%clk 0:03:23.7]} 20... Nxd8 {[%clk
0:04:12.1]} 21. Rd1 {[%clk 0:03:16]} 21... Nc6 {[%clk 0:04:10.6]} 22. Bxc6
{[%clk 0:03:11]} 22... bxc6 {[%clk 0:04:09.3]} 23. Qh8 {[%clk 0:03:02.3]} 23...
Bb7 {[%clk 0:03:56.7]} 24. Rd7+ {[%clk 0:02:58.1]} 24... Kg6 {[%clk 0:03:53]}
25. f5+ {[%clk 0:02:29.9]} 25... exf5 {[%clk 0:03:43.7]} 26. Qxa8 {[%clk
0:02:22.5]} 26... Bxa8 {[%clk 0:03:41.1]} 0-1

[Event "Live Chess"]
[Site "Chess.com"]
[Date "2023.05.21"]
[Round "-"]
[White "Tushinskiy"]
[Black "Ian-Morley"]
[Result "1-0"]
[WhiteElo "2207"]
[BlackElo "1054"]
[TimeControl "300"]
[EndTime "6:37:18 PDT"]
[Termination "Tushinskiy won by checkmate"]

1. d4 {[%clk 0:04:57.4]} 1... d5 {[%clk 0:04:57.1]} 2. c3 {[%clk 0:04:57.3]}
2... Nc6 {[%clk 0:04:55.9]} 3. Nf3 {[%clk 0:04:53.9]} 3... Bg4 {[%clk
0:04:54.6]} 4. Bf4 {[%clk 0:04:53.1]} 4... Bxf3 {[%clk 0:04:53.9]} 5. gxf3
{[%clk 0:04:53]} 5... Nf6 {[%clk 0:04:52.6]} 6. Bg3 {[%clk 0:04:51.5]} 6... e6
{[%clk 0:04:48.9]} 7. Nd2 {[%clk 0:04:50.7]} 7... Bd6 {[%clk 0:04:47.5]} 8. e4
{[%clk 0:04:48.3]} 8... Bxg3 {[%clk 0:04:46.4]} 9. hxg3 {[%clk 0:04:48.2]} 9...
dxe4 {[%clk 0:04:45.3]} 10. fxe4 {[%clk 0:04:46.6]} 10... e5 {[%clk 0:04:44.6]}
11. d5 {[%clk 0:04:39.3]} 11... Nxd5 {[%clk 0:04:41]} 12. exd5 {[%clk
0:04:38.1]} 12... Qxd5 {[%clk 0:04:40.5]} 13. Qf3 {[%clk 0:04:36.5]} 13... Qxf3
{[%clk 0:04:39.4]} 14. Nxf3 {[%clk 0:04:36.4]} 14... e4 {[%clk 0:04:38.2]} 15.
Nd2 {[%clk 0:04:34.8]} 15... O-O-O {[%clk 0:04:37.3]} 16. O-O-O {[%clk
0:04:32.4]} 16... f5 {[%clk 0:04:34.4]} 17. Bh3 {[%clk 0:04:29.2]} 17... g6
{[%clk 0:04:32.8]} 18. Nxe4 {[%clk 0:04:27.6]} 18... Rxd1+ {[%clk 0:04:31]} 19.
Rxd1 {[%clk 0:04:25.8]} 19... Kb8 {[%clk 0:04:22]} 20. Ng5 {[%clk 0:04:22.3]}
20... h6 {[%clk 0:04:20]} 21. Ne6 {[%clk 0:04:19.7]} 21... Re8 {[%clk
0:04:18.6]} 22. Nc5 {[%clk 0:04:16.7]} 22... Re2 {[%clk 0:04:16.7]} 23. Bg2
{[%clk 0:04:12.8]} 23... Rxf2 {[%clk 0:04:11.9]} 24. Bxc6 {[%clk 0:04:10.5]}
24... bxc6 {[%clk 0:04:10.7]} 25. Rd8# {[%clk 0:04:08.9]} 1-0